bitfinex/quotes_ETHUSD_20240729
["timestamp","ask_amount","ask_price","bid_price","bid_amount"]
[1722216221281,1.43103395,3286.0,3285.8,2.43469]
[1722216221598,2.43428,3286.4,3285.8,2.921642]
[1722216221745,1.43109806,3286.3,3285.9,2.43459]
[1722216221949,1.43109806,3286.2,3286.0,2.43455]
[1722216222203,2.4341,3286.7,3286.0,2.43455]
[1722216222348,1.43137947,3286.6,3286.0,2.9701702]
[1722216222841,1.43137947,3286.6,3286.1,2.43449]
[1722216223046,1.43137947,3286.6,3286.2,2.43441]
[1722216223294,6.39406664,3286.9,3286.2,2.43441]
[1722216223295,1.43137947,3286.5,3286.2,2.43441]
[1722216223458,1.43137947,3286.4,3286.0,4.86902]
[1722216223664,1.43137947,3286.3,3286.1,3.151912]
[1722216223865,2.43402,3286.8,3286.1,2.43449]
[1722216224081,1.43202719,3286.7,3286.1,2.43449]
[1722216224541,3.86607719,3286.7,3286.1,2.43449]
[1722216224745,1.43202719,3286.6,3286.1,2.43449]
[1722216225752,3.86617719,3286.6,3286.0,2.43456]
[1722216225951,1.43202719,3286.5,3286.0,2.43456]
[1722216226274,1.43202719,3286.5,3286.0,3.152004]
[1722216227464,1.43202719,3286.5,3286.1,2.43449]
[1722216227782,1.43202719,3286.4,3286.1,2.43449]
[1722216227957,1.43202719,3286.3,3286.1,2.43449]
[1722216228280,1.43136597,3286.2,3285.9,2.43463]
[1722216228481,1.43148393,3286.1,3286.0,2.43457]
[1722216228681,4.00971054,3286.8,3286.2,2.43441]
[1722216228884,1.43145765,3286.7,3286.2,2.43441]
[1722216229273,1.43145765,3286.7,3286.0,2.43457]
[1722216229274,1.43145765,3286.7,3286.0,2.43453]
[1722216229589,1.43145765,3286.6,3286.2,2.43436]
[1722216229884,6.39428841,3286.9,3286.1,0.493243]
[1722216229885,1.43145765,3286.5,3286.3,2.43434]
[1722216230185,1.43145765,3286.4,3286.0,2.43453]
[1722216230487,1.43145765,3286.3,3286.0,2.94283041]
[1722216230654,1.43152849,3286.2,3286.0,2.94281041]
[1722216230855,2.43417,3286.6,3286.0,2.43451]
[1722216231098,1.43154533,3286.5,3286.0,2.43451]
[1722216231465,1.43154533,3286.5,3286.0,2.4345]
[1722216231877,1.43154533,3286.5,3286.1,0.12832388]
[1722216233758,2.43439,3286.3,3286.1,0.12832388]
[1722216233958,1.43154533,3286.2,3285.8,2.43471]
[1722216234300,1.43154533,3286.2,3285.9,2.43464]
[1722216234451,1.43154533,3286.1,3285.9,2.43464]
[1722216234652,2.43425,3286.5,3285.9,2.43464]
[1722216234905,1.43164932,3286.4,3285.9,2.43464]
[1722216235054,1.43164932,3286.4,3285.8,2.43471]
[1722216235405,1.43164932,3286.4,3285.8,3.75530139]
[1722216235406,3.86593932,3286.4,3285.8,3.75530139]
[1722216235693,1.43164932,3286.3,3285.8,3.75530139]
[1722216236831,1.43148009,3286.2,3285.8,1.32059139]
[1722216237385,1.43148009,3286.2,3285.8,3.75528139]
[1722216237589,4.01204164,3286.5,3285.8,3.75528139]
[1722216237590,1.43148009,3286.1,3285.8,3.75528139]
[1722216237790,4.01204164,3286.5,3285.9,0.53116453]
[1722216237791,1.43148009,3286.0,3285.9,0.53116453]
[1722216237991,1.43148009,3286.0,3285.9,2.96580453]
[1722216238192,1.43148009,3286.4,3285.9,2.96580453]
[1722216238392,1.43148009,3286.3,3285.9,2.96580453]
[1722216238637,1.43148009,3286.2,3285.9,2.96580453]
[1722216238839,1.43148009,3286.1,3285.9,2.96580453]
[1722216239006,4.01199164,3286.5,3286.0,0.34343621]
[1722216239211,1.43140561,3286.4,3285.9,2.96580453]
[1722216239934,3.01079945,3286.4,3285.9,2.96580453]
[1722216240141,1.43140561,3286.3,3285.9,2.96580453]
[1722216241118,1.43133815,3286.2,3285.9,2.96580453]
[1722216241321,1.43133815,3286.1,3285.9,2.96580453]
[1722216241631,1.57939384,3286.4,3286.0,0.42863959]
[1722216241632,1.58018742,3286.4,3286.0,0.42863959]
[1722216241837,3.01154512,3286.3,3285.9,0.53116453]
[1722216242003,3.01154512,3286.3,3285.7,2.43475]
[1722216242004,1.43135955,3286.2,3285.7,2.43475]
[1722216242354,3.01154512,3286.2,3285.8,2.43471]
[1722216242550,1.43135955,3286.1,3285.8,2.43471]
[1722216242725,1.43135955,3286.1,3285.8,3.356181]
[1722216243610,1.43135955,3286.1,3285.8,0.921471]
[1722216244222,3.01154512,3286.1,3285.8,0.921471]
[1722216244550,1.43135955,3286.0,3285.8,0.921471]
[1722216244725,1.43135955,3285.9,3285.8,0.921471]
[1722216245609,1.43135955,3285.9,3285.8,2.43471]
[1722216246966,1.43135955,3285.9,3285.8,2.56326141]
[1722216251130,1.43135955,3285.9,3285.8,3.63326141]
[1722216252383,1.43135955,3285.9,3285.8,1.19855141]
[1722216254681,1.58163957,3286.1,3285.8,1.19855141]
[1722216254839,0.56984572,3286.0,3285.8,0.49188455]
[1722216255053,0.56984572,3286.0,3285.9,1.07]
[1722216255366,0.56984572,3286.0,3285.9,1.19856081]
[1722216256372,0.56984572,3286.0,3285.9,10.79988081]
[1722216256669,0.56984572,3286.0,3285.9,9.45131471]
[1722216256870,1.58163957,3286.8,3286.3,2.43429]
[1722216257069,0.56996085,3286.7,3286.6,1.07]
[1722216257562,0.56996085,3286.7,3286.6,1.1980177]
[1722216257932,1.58206776,3286.8,3286.6,1.1980177]
[1722216258135,1.58206776,3286.8,3286.7,1.07]
[1722216258331,2.15318674,3286.8,3286.7,1.19794561]
[1722216259348,4.58715674,3286.8,3286.7,0.12794561]
[1722216259660,3.00508898,3286.8,3286.5,1.07]
[1722216259971,1.58188242,3286.6,3286.5,1.07]
[1722216260181,0.57111898,3286.6,3286.5,1.07]
[1722216260471,2.1530014,3286.6,3286.5,1.07]
[1722216261032,2.15331764,3286.6,3286.5,1.07]
[1722216261460,1.91210948,3286.6,3286.3,1.07]
[1722216261742,1.91210948,3286.5,3286.3,1.07]
[1722216261966,1.91210948,3286.5,3286.4,0.12810597]
[1722216261967,1.5824647,3286.5,3286.4,0.12810597]
[1722216262187,4.3464296,3286.5,3286.4,0.12810597]
[1722216263155,4.3464296,3286.5,3286.1,1.07]
[1722216263476,3.4952769,3286.4,3286.1,3.02424165]
[1722216263676,0.57097393,3286.3,3286.1,3.02424165]
[1722216264268,0.57097393,3286.2,3286.1,5.45872165]
[1722216264584,4.33376286,3286.7,3286.1,5.45872165]
[1722216264585,0.57097393,3286.3,3286.1,5.45872165]
[1722216264741,1.58306072,3286.5,3286.1,5.45872165]
[1722216264742,1.58306072,3286.5,3286.2,1.07]
[1722216264938,1.91194037,3286.4,3286.2,1.07]
[1722216265179,0.57071473,3286.3,3286.2,1.07]
[1722216265342,1.91200422,3286.4,3286.2,1.07]
[1722216265547,0.57071473,3286.3,3286.2,1.07]
[1722216266181,1.91155165,3286.3,3286.2,1.07]
[1722216266483,0.57071473,3286.3,3286.2,1.07]
[1722216266786,1.91147595,3286.3,3286.2,1.07]
[1722216267086,1.91147595,3286.3,3285.9,1.07]
[1722216267087,4.69526962,3286.3,3285.9,1.07]
[1722216267267,3.49422238,3286.2,3285.9,1.07]
[1722216267466,3.49418962,3286.1,3285.9,1.07]
[1722216267642,0.57071473,3286.0,3285.9,1.07]
[1722216268043,1.58271367,3286.2,3285.9,1.07]
[1722216268044,0.57071473,3286.1,3285.9,1.07]
[1722216268282,1.58271367,3286.2,3285.9,1.07]
[1722216268283,0.57071473,3286.0,3285.9,1.07]
[1722216268592,0.57071473,3286.1,3285.9,1.07]
[1722216268766,0.57071473,3286.0,3285.8,4.86936]
[1722216269084,1.58271367,3286.2,3285.9,1.07]
[1722216269274,1.91074025,3286.1,3285.8,6.275026]
[1722216269444,0.57015646,3286.0,3285.9,2.43464]
[1722216269645,0.57015646,3286.1,3285.9,2.43464]
[1722216269845,0.57015646,3286.1,3286.0,1.07]
[1722216270261,0.57015646,3286.1,3286.0,3.9956006]
[1722216270456,0.57015646,3286.1,3286.0,6.4301706]
[1722216270688,5.07962875,3287.2,3286.3,4.86861]
[1722216270846,1.58253968,3286.6,3286.3,4.86855]
[1722216271048,1.91082908,3286.5,3286.3,4.86855]
[1722216271247,1.58242925,3286.6,3286.4,0.486855]
[1722216271443,1.58242925,3286.6,3286.5,1.07]
[1722216271747,2.91929219,3286.6,3286.5,1.07]
[1722216271947,1.33686294,3286.6,3286.5,1.07]
[1722216272143,1.58246314,3286.6,3286.5,1.07]
[1722216272343,1.33686294,3286.6,3286.5,1.07]
[1722216272623,2.77869782,3286.6,3286.5,3.5042]
[1722216272892,0.13981525,3286.6,3286.5,3.5042]
[1722216273049,2.91762514,3286.7,3286.5,1.07]
[1722216273249,0.13981525,3286.6,3286.5,1.07]
[1722216273443,0.13981525,3286.7,3286.5,1.07]
[1722216273688,1.33630764,3286.7,3286.5,1.07]
[1722216273886,2.91751142,3286.6,3286.3,1.07]
[1722216274059,2.91751142,3286.5,3286.3,1.07]
[1722216274381,2.91751142,3286.5,3286.1,2.43447]
[1722216274382,0.13981525,3286.4,3286.1,1.07]
[1722216274583,2.91744815,3286.4,3286.3,1.07]
[1722216274782,0.13981525,3286.4,3286.3,1.07]
[1722216275700,2.91768966,3286.4,3286.3,1.07]
[1722216275987,2.91768966,3286.4,3286.1,1.07]
[1722216276191,0.13981525,3286.3,3286.1,1.07]
[1722216276390,1.33647408,3286.3,3286.1,1.07]
[1722216276558,1.58125008,3286.4,3286.1,1.07]
[1722216276559,0.13981525,3286.2,3286.1,1.07]
[1722216276974,0.13981525,3286.3,3286.1,1.07]
[1722216277148,0.13981525,3286.2,3286.1,1.19827914]
[1722216277343,0.13981525,3286.3,3286.1,3.63272914]
[1722216277592,0.13981525,3286.3,3286.1,0.12827914]
[1722216277803,2.91821881,3286.2,3286.1,0.12827914]
[1722216278007,2.91821881,3286.2,3285.9,1.07]
[1722216278151,0.13981525,3286.1,3285.7,2.43473]
[1722216278353,0.13981525,3286.1,3285.9,2.43464]
[1722216278656,2.4342,3286.5,3285.9,2.43464]
[1722216278657,0.13981525,3286.0,3285.9,2.43464]
[1722216278846,1.72144082,3286.3,3285.9,3.50464]
[1722216279048,1.72144082,3286.3,3286.1,1.07]
[1722216279049,0.13981525,3286.2,3286.1,1.07]
[1722216281013,1.72193456,3286.4,3286.1,1.07]
[1722216281172,0.13981525,3286.3,3286.1,1.07]
[1722216281513,1.72193456,3286.3,3286.1,1.07]
[1722216281663,2.4342,3286.5,3286.1,1.07]
[1722216281664,0.13981525,3286.2,3286.1,1.07]
[1722216281860,1.72193456,3286.3,3286.1,1.07]
[1722216282067,0.13981525,3286.2,3286.1,1.07]
[1722216282269,0.13981525,3286.2,3285.5,2.43491]
[1722216282270,5.35318072,3286.2,3285.5,2.43491]
[1722216282467,5.35318072,3286.2,3285.3,2.3159]
[1722216282468,2.91876072,3286.1,3285.9,1.07]
[1722216282668,0.13981525,3286.0,3285.9,1.07]
[1722216282968,1.72193456,3286.1,3285.9,1.07]
[1722216283164,0.13981525,3286.0,3285.9,1.07]
[1722216284623,0.13981525,3286.1,3285.9,1.07]
[1722216284789,1.72180266,3286.1,3285.9,1.07]
[1722216284990,0.13981525,3286.0,3285.9,1.07]
[1722216286095,0.13981525,3286.1,3285.9,1.07]
[1722216286309,0.13981525,3286.0,3285.9,1.07]
[1722216286713,1.72120286,3286.2,3285.9,1.07]
[1722216287028,1.33615865,3286.1,3285.9,1.07]
[1722216287197,0.13981525,3286.0,3285.9,1.07]
[1722216287706,0.13981525,3286.0,3285.9,3.855116]
[1722216287910,0.13981525,3286.1,3285.9,3.855116]
[1722216288150,0.13981525,3286.0,3285.9,2.785116]
[1722216288449,2.43406,3286.7,3285.9,2.785116]
[1722216288450,1.72120286,3286.1,3285.9,0.350476]
[1722216288622,3.50385,3287.0,3285.8,2.43469]
[1722216288623,0.13931095,3286.0,3285.8,2.43469]
[1722216288826,1.58138761,3286.1,3285.9,1.07]
[1722216288999,0.13929923,3286.0,3285.9,1.07]
[1722216289197,0.13929923,3286.0,3285.9,3.50464]
[1722216289744,0.13929923,3286.1,3285.9,3.50464]
[1722216289889,0.13929923,3286.0,3285.9,3.50464]
[1722216290089,0.13929923,3286.1,3285.9,3.50464]
[1722216290340,0.13929923,3286.0,3285.9,3.50464]
[1722216291193,0.13929923,3286.1,3285.9,3.50464]
[1722216291401,0.13929923,3286.0,3285.9,3.50464]
[1722216291931,0.13929923,3286.0,3285.9,3.63320718]
[1722216292136,0.13929923,3286.1,3285.9,3.63320718]
[1722216292453,0.13929923,3286.1,3286.0,2.43457]
[1722216292804,0.13929923,3286.1,3286.0,2.56306187]
[1722216293232,1.58103755,3286.2,3286.0,2.56306187]
[1722216293512,0.13929923,3286.1,3286.0,2.56306187]
[1722216294204,2.91643011,3286.1,3286.0,0.12849187]
[1722216294454,0.13929923,3286.1,3286.0,0.12849187]
[1722216294601,1.33538099,3286.1,3286.0,0.12849187]
[1722216294806,2.91641854,3286.1,3286.0,0.12849187]
[1722216295339,1.72033678,3286.1,3286.0,0.12849187]
[1722216295544,1.58103755,3286.2,3286.0,0.12849187]
[1722216295741,0.13913053,3286.1,3286.0,0.12849187]
[1722216296948,1.33501084,3286.1,3286.0,0.12849187]
[1722216297448,0.13913053,3286.1,3286.0,2.56306187]
[1722216298256,0.13913053,3286.1,3286.0,8.03896906]
[1722216298423,1.58129372,3286.9,3286.7,2.43405]
[1722216298628,4.64521121,3287.5,3286.9,2.4339]
[1722216298629,1.58129372,3287.0,3286.9,2.4339]
[1722216298841,1.58129372,3287.2,3287.0,2.43383]
[1722216299042,1.58129372,3287.3,3287.2,3.50368]
[1722216299362,4.86456,3287.9,3287.3,2.4336]
[1722216299529,4.86456,3287.9,3287.4,1.07]
[1722216299530,1.58089387,3287.6,3287.4,1.07]
[1722216299721,1.58089387,3287.6,3287.4,1.19748263]
[1722216299919,1.58101301,3287.5,3287.4,1.19748263]
[1722216300253,5.21079884,3287.9,3287.5,2.43346]
[1722216300254,1.58101301,3287.6,3287.5,2.43346]
[1722216300451,1.58101301,3287.8,3287.6,2.43338]
[1722216300620,1.58101301,3287.8,3287.5,3.63087058]
[1722216300621,1.58101301,3287.8,3287.7,1.07]
[1722216300814,1.58101301,3287.8,3287.7,1.19726648]
[1722216300815,2.73651037,3287.8,3287.7,1.19726648]
[1722216301018,1.15549736,3287.8,3287.7,1.19726648]
[1722216301218,2.73683654,3287.8,3287.7,2.56057648]
[1722216301467,1.58133918,3287.9,3287.7,2.56057648]
[1722216301774,1.58133918,3287.9,3287.7,0.12726648]
[1722216301775,1.15573919,3287.8,3287.7,0.12726648]
[1722216302063,1.15573919,3287.8,3287.5,2.4334]
[1722216302262,3.68159721,3288.1,3287.5,2.4334]
[1722216302263,1.58136827,3288.0,3287.5,2.4334]
[1722216302418,1.15586774,3287.9,3287.6,2.56070853]
[1722216302623,1.58136827,3288.0,3287.6,2.56070853]
[1722216302962,1.24857721,3288.1,3287.6,2.56070853]
[1722216302963,2.73719314,3287.9,3287.6,2.56070853]
[1722216303146,1.15582487,3287.8,3287.7,2.43331]
[1722216303319,1.15582487,3287.8,3287.7,2.56034485]
[1722216303520,1.58136827,3288.2,3287.7,0.12703485]
[1722216303821,1.15569319,3288.1,3287.7,0.12703485]
[1722216304044,1.58136827,3288.3,3287.7,0.12703485]
[1722216304235,0.67642339,3288.3,3287.7,0.12703485]
[1722216304436,1.15573098,3288.2,3287.7,2.56030485]
[1722216304633,1.58136827,3288.4,3287.8,2.49404738]
[1722216304634,1.57799601,3288.4,3287.8,2.49404738]
[1722216304838,1.89673161,3288.5,3287.8,2.49404738]
[1722216305033,1.15585831,3288.4,3288.1,2.43301]
[1722216305259,0.50840876,3288.5,3288.1,2.43301]
[1722216305558,0.18967316,3288.5,3288.2,2.55955468]
[1722216305857,2.43243,3288.9,3288.2,2.55955468]
[1722216306036,1.15592758,3288.8,3288.3,2.43281]
[1722216306236,1.15592758,3288.7,3288.2,0.12667468]
[1722216306436,2.4325,3288.8,3288.4,0.12653064]
[1722216306641,2.4325,3288.8,3288.3,0.12660266]
[1722216306858,0.24325,3288.7,3288.5,0.12645863]
[1722216307046,2.75105237,3289.0,3288.4,0.12653064]
[1722216307254,1.15589187,3288.9,3288.5,0.12645863]
[1722216307426,2.43251,3288.8,3288.2,2.43293]
[1722216307627,0.243251,3288.7,3288.3,2.43286]
[1722216307826,0.243251,3288.7,3288.3,2.55946266]
[1722216308567,0.243251,3288.7,3288.3,0.12660266]
[1722216308769,0.243251,3288.7,3288.1,2.43296]
[1722216308929,0.243251,3288.7,3288.4,0.12653064]
[1722216309266,0.243251,3288.7,3288.3,2.43286]
[1722216309431,2.75110237,3289.0,3288.4,0.12653064]
[1722216309632,2.75106237,3289.0,3288.4,2.55931064]
[1722216310356,0.31870237,3289.0,3288.5,2.4327]
[1722216310529,3.0,3289.5,3288.5,2.4327]
[1722216310530,2.2951,3289.6,3289.0,2.43228]
[1722216310734,2.2951,3289.6,3289.1,2.565]
[1722216310930,0.2565,3289.8,3289.1,2.69102665]
[1722216311142,2.68826,3289.8,3289.1,5.12324665]
[1722216311566,0.2565,3289.8,3289.2,2.43219]
[1722216311885,0.2565,3289.8,3289.3,2.43212]
[1722216312084,0.2565,3289.8,3289.4,2.55786073]
[1722216312584,0.31866376,3289.9,3289.4,2.55786073]
[1722216313388,2.75034376,3289.9,3289.4,0.12581073]
[1722216313753,0.31866376,3289.9,3289.4,0.12581073]
[1722216313952,0.31866376,3289.9,3289.1,4.99727]
[1722216313953,2.43185,3289.7,3289.1,4.99727]
[1722216314286,0.51708138,3289.7,3289.2,2.4322]
[1722216314491,0.51708138,3289.7,3289.3,0.1255747]
[1722216314691,0.31866376,3289.9,3289.4,2.43204]
[1722216314992,0.31866376,3289.9,3289.4,2.55754273]
[1722216316792,0.31866376,3289.9,3289.5,2.43197]
[1722216316955,0.31866376,3289.9,3289.4,0.12550273]
[1722216317155,0.31866376,3289.9,3289.4,2.43205]
[1722216317388,0.31866376,3289.9,3289.5,2.55741076]
[1722216317718,0.31866376,3289.9,3289.5,0.12543076]
[1722216317891,2.75039376,3289.9,3289.3,2.43207]
[1722216318186,0.59368814,3289.9,3289.6,0.12477607]
[1722216318487,0.59368814,3289.9,3289.7,0.12470411]
[1722216318696,0.59368814,3289.9,3289.5,2.43197]
[1722216318864,0.59368814,3289.9,3289.8,0.12463215]
[1722216319076,0.59368814,3289.9,3289.3,2.43207]
[1722216319077,3.02538814,3289.9,3289.3,2.43207]
[1722216319280,3.02538814,3289.9,3289.4,0.12492]
[1722216319281,0.30253881,3289.8,3289.4,0.12492]
[1722216320610,0.30253881,3289.8,3289.4,2.55697]
[1722216320766,0.59368814,3289.9,3289.4,2.55697]
[1722216321517,2.43176,3289.8,3289.4,0.12492]
[1722216321725,3.02543814,3289.9,3289.2,2.43215]
[1722216322016,2.43176,3289.8,3289.5,0.12484803]
[1722216322229,2.73430481,3289.8,3289.2,2.43215]
[1722216322398,2.73430481,3289.8,3289.6,0.12477607]
[1722216322722,2.73430481,3289.8,3289.7,0.12470411]
[1722216322889,2.73430481,3289.8,3289.2,2.43215]
[1722216323095,2.73430481,3289.8,3289.3,0.12499197]
[1722216323291,2.73430481,3289.8,3289.2,2.43215]
[1722216323494,2.73430481,3289.8,3289.3,0.12499197]
[1722216323694,0.30254481,3289.8,3289.3,2.43211]
[1722216323986,0.59368814,3289.9,3289.4,0.12492]
[1722216325645,0.31866376,3289.9,3289.4,2.55692]
[1722216325793,0.31866376,3289.9,3289.5,2.43197]
[1722216325992,0.31866376,3289.9,3289.5,2.55681803]
[1722216326234,0.31866376,3289.9,3289.5,0.12484803]
[1722216326448,0.05302403,3290.1,3289.8,2.43169]
[1722216326647,2.43134,3290.4,3289.8,2.43169]
[1722216326855,2.43134,3290.4,3289.9,0.12453148]
[1722216326856,2.9494434,3290.4,3289.9,0.12453148]
[1722216327203,2.74969397,3290.6,3289.9,2.75032095]
[1722216327419,0.31849397,3290.6,3290.3,2.565]
[1722216327608,0.31849397,3290.6,3290.3,4.99638]
[1722216327832,0.31849397,3290.6,3290.4,0.12411918]
[1722216328607,2.43104,3290.8,3290.4,0.12411918]
[1722216328940,2.917234,3290.8,3290.4,0.12411918]
[1722216329142,2.4311,3290.7,3290.4,0.12411918]
[1722216329553,2.948494,3290.8,3290.4,0.12411918]
[1722216330210,5.379514,3290.8,3290.4,0.12411918]
[1722216331510,7.810604,3290.8,3290.4,0.12411918]
[1722216331811,0.81290398,3290.7,3290.4,0.12411918]
[1722216332036,0.31843579,3290.9,3290.4,0.12411918]
[1722216332313,0.31843579,3290.9,3290.5,2.43123]
[1722216332530,0.31843579,3290.9,3290.5,2.55527406]
[1722216332715,0.31843579,3290.9,3290.7,2.565]
[1722216332933,2.43059,3291.4,3290.7,4.99608]
[1722216333160,2.74885819,3291.6,3291.1,2.565]
[1722216333314,0.31840819,3291.6,3291.1,4.99579]
[1722216333515,0.31840819,3291.6,3291.2,0.12345623]
[1722216334238,2.3806,3291.9,3291.2,2.55415623]
[1722216334451,4.8108,3291.9,3291.2,0.12345623]
[1722216334752,2.43042,3291.6,3291.2,0.12345623]
[1722216336029,2.43029,3291.8,3291.2,0.12345623]
[1722216336227,2.43021,3291.9,3291.2,0.12345623]
[1722216336951,2.43028,3291.8,3291.2,0.12345623]
[1722216338110,2.43047,3291.6,3291.2,0.12345623]
[1722216338314,2.43058,3291.4,3291.2,0.12345623]
[1722216338968,2.43043,3291.6,3291.2,0.12345623]
[1722216338969,4.8613,3291.3,3291.2,0.12345623]
[1722216339258,2.43099,3290.9,3290.7,6.78]
[1722216339461,2.43099,3290.9,3290.4,0.14994803]
[1722216339642,2.43081,3291.1,3290.5,2.43124]
[1722216340820,2.43087,3291.0,3290.3,8.43609263]
[1722216341016,2.43114,3290.7,3290.3,2.565]
[1722216341916,2.43117,3290.6,3290.3,2.565]
[1722216342118,2.43114,3290.7,3290.3,2.565]
[1722216342346,2.43114,3290.7,3290.2,6.78]
[1722216342759,2.43097,3290.9,3290.3,2.43138]
[1722216342918,2.4089,3291.0,3290.4,2.4313]
[1722216343123,2.43087,3291.0,3290.3,4.99638]
[1722216343323,2.43095,3290.9,3290.3,4.99638]
[1722216344467,2.43069,3291.3,3290.6,2.43116]
[1722216344974,2.43076,3291.2,3290.6,2.43116]
[1722216345184,2.43076,3291.2,3290.4,2.43131]
[1722216345346,5.104606,3291.2,3290.4,2.43131]
[1722216345550,2.43081,3291.1,3290.5,2.43123]
[1722216346362,2.43081,3291.1,3290.4,2.43128]
[1722216346763,2.43087,3291.0,3290.4,2.43128]
[1722216346962,2.43095,3290.9,3290.3,2.565]
[1722216347163,2.43116,3290.6,3290.3,2.565]
[1722216347324,2.43107,3290.8,3290.3,2.565]
[1722216347546,2.43095,3290.9,3290.3,2.565]
[1722216347992,2.43095,3290.9,3290.3,4.99634]
[1722216348368,2.43102,3290.8,3290.3,2.565]
[1722216349282,2.43102,3290.8,3290.3,4.99638]
[1722216349443,2.43087,3291.0,3290.3,6.174018]
[1722216349639,2.43095,3290.9,3290.3,6.174018]
[1722216350469,2.43084,3291.1,3290.4,2.43126]
[1722216351093,2.43087,3291.0,3290.4,2.43126]
[1722216351627,2.43072,3291.2,3290.7,2.565]
[1722216351794,0.3184217,3291.3,3290.7,2.565]
[1722216352097,0.3184217,3291.3,3290.8,0.12358919]
[1722216352386,2.43058,3291.4,3290.8,2.55458919]
[1722216352584,2.43058,3291.4,3290.8,0.12358919]
[1722216352585,2.43071,3291.3,3290.8,0.12358919]
[1722216352790,2.43072,3291.2,3290.8,0.12358919]
[1722216354083,2.43058,3291.4,3290.8,0.12358919]
[1722216354084,2.43058,3291.4,3290.8,2.55458919]
[1722216354288,0.11545198,3291.3,3290.8,2.55458919]
[1722216355518,2.54610198,3291.3,3290.8,2.55458919]
[1722216355716,0.11545198,3291.2,3290.8,2.55458919]
[1722216356180,2.54619198,3291.2,3290.8,0.12358919]
[1722216356381,0.11545198,3291.1,3290.8,0.12358919]
[1722216356630,0.11545198,3291.0,3290.8,0.12358919]
[1722216356804,2.43065,3291.3,3290.8,0.12358919]
[1722216356998,0.11546053,3291.2,3290.8,0.12358919]
[1722216357729,0.11546053,3291.2,3290.8,2.55459919]
[1722216358514,0.11546053,3291.2,3290.8,0.12358919]
[1722216358924,0.11546053,3291.2,3290.8,3.30967611]
[1722216359283,0.11546053,3291.1,3290.8,3.30967611]
[1722216359627,2.4305,3291.5,3290.9,2.43094]
[1722216359787,0.11551165,3291.4,3290.9,2.43094]
[1722216359983,0.11551165,3291.4,3291.0,0.12344538]
[1722216361649,2.4305,3291.5,3291.0,0.12344538]
[1722216361650,0.11550947,3291.3,3291.0,0.12344538]
[1722216361789,0.11550947,3291.2,3291.0,0.12344538]
[1722216362000,0.11550947,3291.1,3291.0,0.12344538]
[1722216362221,4.3309625,3291.7,3291.1,2.3518]
[1722216362222,0.11550947,3291.4,3291.1,2.3518]
[1722216362420,0.11551291,3291.3,3291.1,2.3518]
[1722216362585,2.74877905,3291.7,3291.1,2.3518]
[1722216362586,0.11551291,3291.2,3291.1,2.3518]
[1722216362784,0.11551291,3291.2,3291.1,7.85139185]
[1722216363000,2.43022,3291.9,3291.1,7.85137185]
[1722216363203,0.11552314,3291.8,3291.2,2.43066]
[1722216363400,0.11552314,3291.8,3291.1,7.85137185]
[1722216363916,0.11552314,3291.8,3291.3,2.43064]
[1722216364157,0.11552314,3291.8,3291.3,3.45884118]
[1722216364328,0.11552314,3291.8,3291.5,2.4305]
[1722216364645,0.11552314,3291.7,3291.6,2.43041]
[1722216364849,0.11552314,3292.0,3291.6,2.43041]
[1722216365635,0.11552314,3292.0,3291.6,2.43038]
[1722216365837,0.11552314,3292.0,3291.7,2.929878]
[1722216366104,4.01262847,3292.4,3291.7,0.499538]
[1722216366105,0.11552314,3291.9,3291.7,0.499538]
[1722216366334,2.42999,3292.2,3291.7,0.499538]
[1722216366544,0.11543152,3292.1,3291.6,2.43037]
[1722216366969,0.11543152,3292.1,3291.7,0.12273501]
[1722216367817,2.54550152,3292.1,3291.7,0.12273501]
[1722216368034,0.11543152,3292.0,3291.5,4.9955]
[1722216368270,0.11543152,3292.0,3291.8,0.12266314]
[1722216368490,2.54559152,3292.0,3291.5,2.565]
[1722216368647,2.43016,3292.0,3291.9,0.12259128]
[1722216368828,2.54560231,3292.0,3291.5,2.565]
[1722216369031,0.11544231,3291.9,3291.5,3.84537112]
[1722216369256,2.43002,3292.2,3291.5,3.84537112]
[1722216369457,0.11547663,3292.1,3291.5,3.84537112]
[1722216369664,0.11547663,3292.1,3291.6,2.3745]
[1722216369860,0.11547663,3292.0,3291.7,2.43033]
[1722216370065,2.42992,3292.3,3291.7,3.29535011]
[1722216370266,0.11551935,3292.2,3291.7,3.29535011]
[1722216370470,0.11551935,3292.1,3291.7,5.72565011]
[1722216370678,0.11551935,3292.0,3291.8,0.81001501]
[1722216370975,2.42979,3292.5,3291.8,3.24028501]
[1722216371189,2.54536444,3292.4,3291.8,3.24028501]
[1722216371354,2.54548444,3292.3,3291.6,2.3745]
[1722216371553,2.54548444,3292.3,3291.5,6.27584112]
[1722216371554,2.43006,3292.1,3291.5,6.27584112]
[1722216371859,2.42996,3292.3,3291.6,2.43042]
[1722216371860,0.11552444,3292.0,3291.6,2.43042]
[1722216372053,0.11552444,3291.9,3291.5,3.84537112]
[1722216372268,0.11552444,3291.8,3291.5,3.84537112]
[1722216372581,2.4301,3292.1,3291.5,6.27584112]
[1722216372740,0.1154712,3292.0,3291.5,4.99547]
[1722216373361,2.5456112,3292.0,3291.5,4.99547]
[1722216373581,2.4301,3292.1,3291.5,4.99547]
[1722216373740,0.11547247,3292.0,3291.5,4.99547]
[1722216374192,2.54563247,3292.0,3291.5,2.565]
[1722216374366,0.11547247,3291.9,3291.5,2.565]
[1722216374568,2.54572247,3291.9,3291.5,2.565]
[1722216374761,2.54580247,3291.8,3291.3,6.78]
[1722216374978,0.11547247,3291.7,3291.3,9.21064]
[1722216375336,0.11547247,3291.7,3291.3,6.78]
[1722216375681,0.11547247,3291.7,3291.3,9.21064]
[1722216376091,0.11547247,3291.7,3291.3,6.78]
[1722216377165,0.37005272,3291.7,3290.8,6.78]
[1722216377386,2.43084,3291.1,3290.8,6.78]
[1722216377680,0.11552663,3291.0,3290.8,6.78]
[1722216377884,0.11552663,3291.0,3290.7,2.565]
[1722216378086,0.11552663,3290.9,3290.7,4.99606]
[1722216378254,2.43053,3291.5,3290.7,5.976224]
[1722216378458,0.11552799,3291.4,3290.7,5.976224]
[1722216378673,2.54609799,3291.4,3290.9,2.43089]
[1722216378890,0.11552799,3291.3,3290.9,2.43089]
[1722216379444,0.11552799,3291.3,3290.7,5.976224]
[1722216379445,2.54617799,3291.3,3290.7,5.976224]